Cogmind - Beta 10.2 @@@ ROGUE MODE // 2021.06.05 @ 11:40:57 Player: strategineer Result: Destroyed by B-75 Beast with Heavy Machine Gun Performance ------------- Evolutions (4) 2000 Regions Visited (8) 1600 Robots Destroyed (170) 850 Value Destroyed (5597) 5597 Prototype IDs (8) 160 Alien Tech Used (0) 0 Bonus (714) 714 TOTAL SCORE: 10921 Bonus ------- High Alert Combat Kills 714 Cogmind --------- Core Integrity 0/850 Matter 285/550 Energy 80/100 System Corruption 3% Temperature Cool (0) Movement Core (950) Ox18 Location -6/Extension Parts ------- > --- POWER (2) -------- (None) > --- PROPULSION (5) --- (None) > --- UTILITY (5) ------ High-capacity Storage Unit Matter Compressor Improved Targeting Computer Improved Targeting Computer Target Analyzer > --- WEAPON (3) ------- Hypervelocity Gauss Rifle Hypervelocity Gauss Rifle Hypervelocity Gauss Rifle > --- INVENTORY (12) --- High-capacity Battery (104) Advanced Weight Redist. System Experimental Signal Interpreter Cloaking Device Improved Field Recycling Unit (44) Peak State ------------ > --- POWER ------------ Light Nuclear Core Light Angular Momentum Engine > --- PROPULSION ------- Improved Carbon-fiber Leg Improved Gravmag System Improved Gravmag System Improved Gravmag System Improved Gravmag System > --- UTILITY ---------- High-capacity Storage Unit Matter Compressor Target Analyzer Recoil Stabilizer Improved Field Recycling Unit > --- WEAPON ----------- Hypervelocity Gauss Rifle Hypervelocity Gauss Rifle Hypervelocity Gauss Rifle > --- INVENTORY -------- Improved Ion Engine Compact Battery Advanced Weight Redist. System Experimental Signal Interpreter Cloaking Device Force Field Hypervelocity Gauss Rifle Hypervelocity Gauss Rifle Hypervelocity Gauss Rifle Hypervelocity Gauss Rifle Hypervelocity Gauss Rifle Hypervelocity Gauss Rifle [Rating: 68] Favorites ----------- Power Improved Deuterium Engine Engine Improved Deuterium Engine Power Core Light Nuclear Core Propulsion Carbon-fiber Leg Treads Light Treads Leg Carbon-fiber Leg Hover Unit Improved Gravmag System Flight Unit Improved Flight Unit Utility High-capacity Storage Unit Device Advanced Weight Redist. System Storage High-capacity Storage Unit Processor Visual Processing Unit Hackware System Shield Protection Improved Light Armor Plating Weapon Scythe Energy Gun Heavy Laser Energy Cannon Plasma Cannon Ballistic Gun Hypervelocity Gauss Rifle Ballistic Cannon Heavy Flak Cannon Launcher Precision Grenade Launcher Slashing Weapon Scythe Build | -11 -10 -9 -8 -7 -7 -7 -6 -6 ------- Run | Scr Mat Mat Mat Fac Low Low Fac Ext Slots Evolved 8 | . . 2 2 2 . . 2 . Power 1 | . . . . . . . 1 . Propulsion 3 | . . 2 . . . . 1 . Utility 3 | . . . 2 1 . . . . Weapon 1 | . . . . 1 . . . . Parts Attached 216 | . 10 15 37 46 8 . 90 10 Power 27 | . . . 5 8 4 . 10 . Engine 17 | . . . 3 5 2 . 7 . Core 10 | . . . 2 3 2 . 3 . Reactor . | . . . . . . . . . Propulsion 70 | . 4 10 15 15 . . 26 . Treads 14 | . . . 8 6 . . . . Leg 50 | . 4 9 7 9 . . 21 . Wheel . | . . . . . . . . . Hover 5 | . . . . . . . 5 . Flight 1 | . . 1 . . . . . . Utility 56 | . 2 1 8 6 2 . 32 5 Device 35 | . . . 1 3 2 . 26 3 Storage 9 | . 1 1 3 1 . . 3 . Processor 5 | . 1 . . . . . 2 2 Hackware 1 | . . . 1 . . . . . Protection 6 | . . . 3 2 . . 1 . Artifact . | . . . . . . . . . Weapon 63 | . 4 4 9 17 2 . 22 5 Energy Gun 13 | . 1 3 2 4 1 . 2 . Energy Cannon 8 | . 1 . 2 2 . . 3 . Ballistic Gun 27 | . 2 1 2 3 1 . 13 5 Ballistic Cannon 2 | . . . . 1 . . 1 . Launcher 3 | . . . . . . . 3 . Special Weapon . | . . . . . . . . . Impact Weapon . | . . . . . . . . . Slashing Weapon 10 | . . . 3 7 . . . . Piercing Weapon . | . . . . . . . . . Special Melee Weapon . | . . . . . . . . . Unidentified Prototypes 6 | . . 1 . 2 . . 3 . Parts Lost 65 | . 2 6 11 7 . . 25 14 Power 11 | . . . 2 1 . . 6 2 Propulsion 21 | . . 2 4 3 . . 7 5 Utility 14 | . . . 4 1 . . 7 2 Weapon 19 | . 2 4 1 2 . . 5 5 Highest Loss Streak 14 | . 2 3 4 2 . . 8 14 Average Slot Usage (%) 95 | . 96 98 95 94 100 100 94 89 Engine 7 | . 14 11 5 5 5 7 9 3 Core 1 | . . . 3 1 1 . 2 3 Treads 9 | . . . 27 23 . . . . Leg 19 | . 27 43 7 5 30 30 26 5 Hover 2 | . . . . . . . 5 22 Device 11 | . . . 4 14 15 15 18 5 Storage 10 | . 14 18 18 7 7 7 7 13 Processor 1 | . 11 3 . . . . . 13 Hackware 3 | . . . 4 7 7 7 . . Protection 3 | . . . 6 5 7 7 1 . Energy Gun 4 | . 10 8 4 3 7 7 1 . Energy Cannon 2 | . 6 . 3 . 3 . 2 . Ballistic Gun 8 | . 10 13 3 4 10 15 12 17 Slashing Weapon 3 | . . . 6 11 . . . . Naked Turns . | . . . . . . . . . Heaviest Build 89 | 13 26 42 80 79 66 62 89 82 Greatest Support 112 | 20 20 40 112 80 64 64 87 65 Greatest Overweight (x) 18 | . 1 4 1 3 1 . 2 18 Average Overweight (x) . | . . . . . . . . 1 Largest Inventory Capacity 22 | . 10 16 22 20 12 12 12 12 Average Capacity 12 | . 7 13 17 12 12 12 12 12 Most Carried 17 | . 10 16 17 17 12 12 12 12 Average Carried 11 | . 7 11 15 11 11 12 10 10 Final Capacity 20 | 6 10 16 20 12 12 12 12 12 Final Carried 17 | 6 10 16 17 11 12 12 12 5 Class Distribution -------------------- 35% | Scavenger-Mutant 29% | Scavenger-Tank 15% | Mutant 9% | Scavenger-Gunner 6% | Gunner Dominant Class ---------------- Mutant | -10/Materials Scavenger-Mutant | -9/Materials Mutant | -8/Materials Scavenger-Mutant | -7/Factory Scavenger-Tank | -7/Lower Caves Scavenger-Tank | -7/Lower Caves Scavenger-Gunner | -6/Factory Scavenger-Gunner | -6/Extension Resources | -11 -10 -9 -8 -7 -7 -7 -6 -6 ----------- Run | Scr Mat Mat Mat Fac Low Low Fac Ext Matter Collected 4909 | 200 168 318 667 728 74 17 2619 118 Remotely 369 | . . . . . . . 369 . Salvage Created 7870 | . 627 597 1511 1060 . . 3356 719 Parts 393 | . 45 38 79 57 . . 154 20 Haulers Intercepted 7 | . . . 2 . . . 3 2 Recyclers Shooed 11 | . 1 2 . . . . 7 1 Parts Field Recycled 21 | . . . . . . . 21 . Retrieved Matter 292 | . . . . . . . 292 . Parts Self-Destructed . | . . . . . . . . . Prevented . | . . . . . . . . . Kills | -11 -10 -9 -8 -7 -7 -7 -6 -6 ------- Run | Scr Mat Mat Mat Fac Low Low Fac Ext Combat Hostiles Destroyed 127 | . 17 16 26 21 . . 45 2 Melee 21 | . . . 15 6 . . . . Guns 79 | . 14 16 11 13 . . 23 2 Cannons 16 | . 2 . . 2 . . 12 . AOE 10 | . 1 . . . . . 9 . Classes Destroyed 16 | . 4 1 6 1 . . 3 1 Worker 9 | . . . 1 1 . . 7 . Builder 4 | . 1 . 1 . . . 2 . Hauler 7 | . . . 2 . . . 3 2 Recycler 9 | . . . . . . . 7 2 Carrier 1 | . . . . . . . . 1 Mechanic 1 | . . . 1 . . . . . Operator 1 | . . . . . . . 1 . Watcher 11 | . 3 1 1 2 . . 4 . Swarmer 37 | . 6 6 3 3 . . 17 2 Grunt 57 | . 11 5 15 8 . . 18 . Brawler 4 | . . . 1 2 . . 1 . Duelist 2 | . . . 1 1 . . . . Sentry 16 | . . 5 5 2 . . 4 . Hunter 3 | . . . 1 2 . . . . Programmer 7 | . . . . 3 . . 4 . Behemoth 1 | . . . . . . . 1 . Best Kill Streak 13 | . 7 4 5 4 . . 13 5 Combat Bots Only 6 | . 6 4 5 4 . . 4 2 Max Kills in Single Turn 2 | . 2 1 2 2 . . 2 1 Gunslinging 1 | . 1 . 1 . . . 1 . Exploded 2 | . 1 . . . . . 2 . Melee 1 | . . . 1 1 . . . . Uniques/NPCs Destroyed . | . . . . . . . . . Combat | -11 -10 -9 -8 -7 -7 -7 -6 -6 -------- Run | Scr Mat Mat Mat Fac Low Low Fac Ext Damage Taken 12470 | . 676 831 2610 2085 . . 4414 1854 Core 1606 | . 187 120 246 183 . . 474 396 Absorbed by Shields 44 | . . . . . . . . 44 Core Remaining (%) 64 | 100 25 70 55 . . 73 . . Volleys Fired 396 | . 44 74 62 47 . . 144 25 Largest 3 | . 2 2 2 3 . . 3 3 Hottest 191 | . 110 76 118 163 . . 191 99 Shots Fired 904 | . 85 134 116 126 2 . 372 69 Gun 734 | . 64 134 104 117 1 . 245 69 Cannon 150 | . 21 . 12 9 1 . 107 . Launcher 20 | . . . . . . . 20 . Special . | . . . . . . . . . Kinetic 575 | . 25 85 60 76 1 . 259 69 Thermal 199 | . 43 49 . 44 1 . 62 . Explosive 18 | . . . . . . . 18 . Electromagnetic 112 | . 17 . 56 6 . . 33 . Robot Hit Streak 24 | . 22 23 11 14 . . 14 24 Robot Miss Streak 9 | . 4 4 5 9 . . 7 2 Penetration Max 2 | . . . . . . . 1 2 Secondary Targets 14 | . 2 2 3 1 . . 4 2 Max Gunslinging Chain 2 | . 1 1 1 1 . . 2 1 Shots Hit Robots 639 | . 55 90 115 103 . . 219 57 Core Hits 367 | . 35 30 49 58 . . 167 28 Critical Hits 75 | . 1 . 1 1 . . 30 42 Critical Kills 24 | . 1 . 1 . . . 15 7 Critical Parts Destroyed 28 | . . . . 1 . . 13 14 Melee Attacks 88 | . . . 61 27 . . . . Impact . | . . . . . . . . . Slashing 88 | . . . 61 27 . . . . Piercing . | . . . . . . . . . Sneak Attacks 8 | . . . 8 . . . . . Combat Hostiles . | . . . . . . . . . Follow-up Attacks 12 | . . . 7 5 . . . . Damage Inflicted 14038 | . 784 1206 2739 2392 . . 6384 533 Guns 6923 | . 552 1202 715 1462 . . 2459 533 Cannons 2313 | . 143 . 77 118 . . 1975 . Explosions 1950 | . 63 . . . . . 1887 . Melee 2759 | . . . 1947 812 . . . . Ramming 93 | . 26 4 . . . . 63 . Kinetic 5697 | . 241 717 479 899 . . 2828 533 Thermal 2424 | . 381 485 . 579 . . 979 . Explosive 1761 | . . . . . . . 1761 . Electromagnetic 1304 | . 136 . 313 102 . . 753 . Impact . | . . . . . . . . . Slashing 2759 | . . . 1947 812 . . . . Piercing . | . . . . . . . . . Highest Corruption 5 | . . . . 5 5 5 3 3 Average Corruption 4 | . . . . 3 5 5 2 3 Corruption Purged . | . . . . . . . . . Effects 60 | . . . . 21 24 1 8 6 Message Errors 10 | . . . . 5 3 . 1 1 Matter Fused 15 | . . . . 5 8 1 1 . Heat Flow Errors 9 | . . . . 1 5 . 1 2 Energy Discharges 8 | . . . . 3 2 . 3 . Data Loss (minor) 7 | . . . . 3 3 . 1 . Data Loss (major) 1 | . . . . . 1 . . . Misfires 2 | . . . . . 2 . . . Targeting Errors 7 | . . . . 4 . . 1 2 Weapon Failures 1 | . . . . . . . . 1 Overload Shots . | . . . . . . . . . Overflow Damage 494 | . . . 318 19 . . 157 . Projectiles 96 | . . . 1 . . . 95 . Explosions 48 | . . . . . . . 48 . Melee 350 | . . . 317 19 . . 14 . Knockbacks 8 | . . . . . . . 8 . Impact 2 | . . . . . . . 2 . Kinetic 6 | . . . . . . . 6 . Secondary . | . . . . . . . . . Self-Inflicted Damage 141 | . 4 . . . . . 137 . Shots 3 | . . . . . . . 3 . Rammed 3 | . 3 . . . . . . . Targets Rammed 9 | . 5 1 . . . . 3 . Kicked 6 | . 2 1 . . . . 3 . Crushed . | . . . . . . . . . Highest Temperature 577 | . 490 114 283 496 278 . 577 348 Average Temperature 131 | . 158 24 80 188 113 . 146 130 Received Heat Transfer 3018 | . 267 291 927 366 . . 1089 78 Effects 50 | . 3 . . 9 . . 32 6 Shutdowns 11 | . 2 . . . . . 8 1 Energy Bleed 11 | . 1 . . 3 . . 5 2 Interference 15 | . . . . 4 . . 8 3 Matter Decay 1 | . . . . . . . 1 . Short Circuit 6 | . . . . 2 . . 4 . Damage (minor) 2 | . . . . . . . 2 . Damage (major) 3 | . . . . . . . 3 . Damage (core) 1 | . . . . . . . 1 . Siege Activations . | . . . . . . . . . Robots Corrupted 2 | . . . . 1 . . 1 . Combat Hostiles 1 | . . . . . . . 1 . Parts Fried 11 | . . . 1 3 . . 7 . Impact Corruptions 2 | . . . . . . . 2 . Robots Melted . | . . . . . . . . . Combat Hostiles . | . . . . . . . . . Parts Melted 10 | . 5 1 . 3 . . 1 . Heat Transferred 4960 | . 914 1188 . 1164 . . 1694 . Parts Sabotaged . | . . . . . . . . . Parts Stolen . | . . . . . . . . . Parts Stripped . | . . . . . . . . . Power Chain Reactions 3 | . 1 . . . . . 2 . Missiles Intercepted . | . . . . . . . . . Alert | -11 -10 -9 -8 -7 -7 -7 -6 -6 ------- Run | Scr Mat Mat Mat Fac Low Low Fac Ext Peak Influence 954 | . 281 356 560 671 . . 954 490 Initial 450 | . . 107 150 254 . . 35 450 Average 387 | . 148 224 329 404 . . 511 454 Maximum Alert Level 3 | . 1 1 2 2 . . 3 2 Low Security (%) 20 | . 60 43 12 4 . . 22 . Level 1 37 | . 39 56 68 35 . . 19 . Level 2 30 | . . . 19 59 . . 20 100 Level 3 12 | . . . . . . . 37 . Level 4 . | . . . . . . . . . Level 5 . | . . . . . . . . . High Security . | . . . . . . . . . Max Security . | . . . . . . . . . Squads Dispatched 36 | . 5 2 8 9 . . 12 . Investigation 13 | . 4 1 2 2 . . 4 . Extermination 8 | . . . . 3 . . 5 . Reinforcement 9 | . 1 1 3 1 . . 3 . Assault . | . . . . . . . . . Garrison 6 | . . . 3 3 . . . . Intercept . | . . . . . . . . . Construction Impeded 3 | . . . . . . . 3 . Haulers Reinforced . | . . . . . . . . . Stealth | -11 -10 -9 -8 -7 -7 -7 -6 -6 --------- Run | Scr Mat Mat Mat Fac Low Low Fac Ext Distress Signals 12 | . 2 2 3 1 . . 3 1 Communications Jammed . | . . . . . . . . . Distress Signals . | . . . . . . . . . Times Spotted 177 | . 22 22 39 29 . . 60 5 Peak Tracking Total 6 | . 3 6 6 5 . . 6 3 Tactical Retreats 11 | . . 2 4 . . . 5 . Traps | -11 -10 -9 -8 -7 -7 -7 -6 -6 ------- Run | Scr Mat Mat Mat Fac Low Low Fac Ext Traps Triggered 9 | . 3 . . 4 . . 2 . Indirectly . | . . . . . . . . . Trap Hack Attempts . | . . . . . . . . . Triggered . | . . . . . . . . . Disarmed . | . . . . . . . . . Reprogrammed 1 | . . 1 . . . . . . Reused . | . . . . . . . . . Traps Extracted . | . . . . . . . . . Installed . | . . . . . . . . . Triggered . | . . . . . . . . . Machines | -11 -10 -9 -8 -7 -7 -7 -6 -6 ---------- Run | Scr Mat Mat Mat Fac Low Low Fac Ext Machines Disabled 10 | . . . 2 3 . . 5 . Max in Single Turn 1 | . . . 1 1 . . 1 . Machines Sabotaged . | . . . . . . . . . Garrisons Compromised . | . . . . . . . . . Overloaded Fab Kills . | . . . . . . . . . Fab Network Shutdowns 1 | . . . . 1 . . . . Hacking | -11 -10 -9 -8 -7 -7 -7 -6 -6 --------- Run | Scr Mat Mat Mat Fac Low Low Fac Ext Machines Accessed 25 | . 3 3 3 5 3 . 8 . Terminals 7 | . 2 2 . 1 . . 2 . Fabricators 3 | . . . . 2 . . 1 . Repair Stations 4 | . 1 1 . 1 . . 1 . Recycling Units 4 | . . . 1 1 . . 2 . Scanalyzers 4 | . . . 2 . . . 2 . Garrison Access . | . . . . . . . . . Total Hacks 95 | . 9 9 22 15 9 . 31 . Successful 73 | . 4 6 22 10 9 . 22 . Failed 22 | . 5 3 . 5 . . 9 . Catastrophic 3 | . 2 . . . . . 1 . Database Lockouts . | . . . . . . . . . Manual . | . . . . . . . . . Terminals 18 | . 6 5 . 2 . . 5 . Fabricators 9 | . . . . 6 . . 3 . Repair Stations 13 | . 3 4 . 4 . . 2 . Recycling Units 11 | . . . 2 3 . . 6 . Scanalyzers 35 | . . . 20 . . . 15 . Garrison Access . | . . . . . . . . . Terminal Hacks 15 | . 2 3 . . 9 . 1 . Record 7 | . . . . . 7 . . . Prototype ID Bank 1 | . 1 . . . . . . . Open Door 2 | . . . . . 2 . . . Fabricator Index 1 | . . . . . . . 1 . Locate Traps 1 | . . 1 . . . . . . Reprogram Traps 1 | . . 1 . . . . . . Hauler Manifests 2 | . 1 1 . . . . . . Fabricator Hacks 6 | . . . . 4 . . 2 . Load Schematic 4 | . . . . 3 . . 1 . Build 2 | . . . . 1 . . 1 . Repair Station Hacks 11 | . 2 3 . 4 . . 2 . Scan Component 6 | . 1 2 . 2 . . 1 . Repair 5 | . 1 1 . 2 . . 1 . Recycling Unit Hacks 8 | . . . 2 2 . . 4 . Report Inventory 4 | . . . 1 1 . . 2 . Retrieve Components 4 | . . . 1 1 . . 2 . Scanalyzer 33 | . . . 20 . . . 13 . Insert Component 16 | . . . 9 . . . 7 . Analyze 17 | . . . 11 . . . 6 . Garrison Access Hacks . | . . . . . . . . . Unauthorized Hacks . | . . . . . . . . . Terminals . | . . . . . . . . . Fabricators . | . . . . . . . . . Repair Stations . | . . . . . . . . . Recycling Units . | . . . . . . . . . Scanalyzers . | . . . . . . . . . Garrison Access . | . . . . . . . . . Data Cores Recovered . | . . . . . . . . . Used . | . . . . . . . . . Hacking Detections 18 | . 2 3 1 4 . . 8 . Full Trace Events 11 | . 2 2 1 2 . . 4 . Feedback Events . | . . . . . . . . . Feedback Blocked . | . . . . . . . . . Robot Schematics Acquired . | . . . . . . . . . Robots Built . | . . . . . . . . . Matter . | . . . . . . . . . Time . | . . . . . . . . . Total Robot Build Rating . | . . . . . . . . . Part Schematics Acquired 14 | . . . 9 . . . 5 . Parts Built 3 | . . . . 2 . . 1 . Matter 292 | . . . . 146 . . 146 . Time 109 | . . . . 73 . . 36 . Total Part Build Rating 9 | . . . . 6 . . 3 . Parts Repaired 5 | . 1 1 . 2 . . 1 . Time 150 | . 26 26 . 76 . . 22 . Parts Recycled . | . . . . . . . . . Recycled Matter . | . . . . . . . . . Retrieved Matter . | . . . . . . . . . Retrieved Components 30 | . . . 10 3 . . 17 . Parts Scanalyzed 16 | . . . 9 . . . 7 . Part Schematics Acquired 14 | . . . 9 . . . 5 . Parts Damaged 1 | . . . . . . . 1 . Bothacking | -11 -10 -9 -8 -7 -7 -7 -6 -6 ------------ Run | Scr Mat Mat Mat Fac Low Low Fac Ext Used RIF Installer . | . . . . . . . . . Robots Hacked . | . . . . . . . . . Non-combat . | . . . . . . . . . Combat . | . . . . . . . . . Robot Hacks Applied . | . . . . . . . . . Relay Couplers Released . | . . . . . . . . . Robots Rewired . | . . . . . . . . . Allies Hacked . | . . . . . . . . . Hacks Repelled . | . . . . . . . . . Allies | -11 -10 -9 -8 -7 -7 -7 -6 -6 -------- Run | Scr Mat Mat Mat Fac Low Low Fac Ext Total Allies . | . . . . . . . . . Largest Group . | . . . . . . . . . Highest-Rated Group . | . . . . . . . . . Highest-Rated Ally . | . . . . . . . . . Total Orders . | . . . . . . . . . Ally Attacks . | . . . . . . . . . Total Damage . | . . . . . . . . . Kills . | . . . . . . . . . Allies Corrupted . | . . . . . . . . . Allies Melted . | . . . . . . . . . Intel | -11 -10 -9 -8 -7 -7 -7 -6 -6 ------- Run | Scr Mat Mat Mat Fac Low Low Fac Ext Robot Analysis Total . | . . . . . . . . . Derelict Logs Recovered . | . . . . . . . . . Drone Launches . | . . . . . . . . . Drone Recoveries . | . . . . . . . . . Exploration | -11 -10 -9 -8 -7 -7 -7 -6 -6 ------------- Run | Scr Mat Mat Mat Fac Low Low Fac Ext Turns Passed 7906 | . 602 659 1103 1989 1108 86 2138 221 Spaces Moved 4247 | 1 305 262 441 1016 845 72 1205 100 Core 1 | . . . . . . . . 1 Treads 1291 | . . . 362 929 . . . . Legs 2517 | 1 305 262 79 87 845 72 863 3 Wheels . | . . . . . . . . . Hover 438 | . . . . . . . 342 96 Flight . | . . . . . . . . . Fastest Speed 58 | 120 120 120 120 150 120 120 102 58 Average Speed 138 | 120 130 147 157 162 129 120 118 118 Slowest Speed 950 | 120 150 240 180 210 150 120 180 950 Overloaded Moves . | . . . . . . . . . Propulsion Burnouts . | . . . . . . . . . Robots Hopped . | . . . . . . . . . Cave-ins Triggered . | . . . . . . . . . Exploration Rate (%) 32 | 2 55 29 35 26 88 12 27 18 Regions Visited 8 Branch Regions 3 Pre-discovered Areas 1 | . . . . . 1 . . . Known Exits Taken . | . . . . . . . . . Unknown Exits Taken 8 | 1 1 1 1 1 1 1 1 . Scrap Searched 3 | . . . . . 2 1 . . Spaces Dug 8 | . . . . . . . 8 . Terrain Destroyed 91 | . 4 . . 2 . . 85 . Melee . | . . . . . . . . . Projectile 8 | . . . . 2 . . 6 . AOE 83 | . 4 . . . . . 79 . Terrain Rammed . | . . . . . . . . . Walls Destroyed . | . . . . . . . . . Machines Disabled . | . . . . . . . . . Actions | -11 -10 -9 -8 -7 -7 -7 -6 -6 --------- Run | Scr Mat Mat Mat Fac Low Low Fac Ext Total 5436 | . 429 402 659 1230 860 71 1634 151 Wait 181 | . 33 26 23 30 . . 63 6 Move 4239 | . 304 261 440 1015 844 71 1204 100 Hop . | . . . . . . . . . Pick Up 152 | . 19 19 20 31 4 . 54 5 Fast Attach 39 | . 2 1 7 8 . . 21 . Attach 69 | . 3 8 12 14 1 . 24 7 Detach 5 | . . . 4 . . . 1 . Swap 108 | . 5 6 18 24 7 . 45 3 Drop 149 | . 14 6 21 37 4 . 62 5 Fire 396 | . 44 74 62 47 . . 144 25 Melee 72 | . . . 52 20 . . . . Ram . | . . . . . . . . . Kick 9 | . 5 1 . . . . 3 . Crush . | . . . . . . . . . Escape Stasis 17 | . . . . 4 . . 13 . Rewire . | . . . . . . . . . Trap . | . . . . . . . . . Miscellaneous . | . . . . . . . . . Route ------- -11/Scrapyard -10/Materials -9/Materials -8/Materials -7/Factory -7/Lower Caves -7/Lower Caves -6/Factory -6/Extension History --------- Turn | Location | Event 1 | -11/Scrapyard | Discovered new exit (range 0) 1 | -11/Scrapyard | Entered Materials 307 | -10/Materials | Build established: Mutant 423 | -10/Materials | Core integrity fell below 50% 495 | -10/Materials | Repaired Aluminum Leg 570 | -10/Materials | Discovered new exit (range 18) 603 | -10/Materials | Entered another Materials area 603 | -9/Materials | Evolved 2 slots: Propulsion x2 766 | -9/Materials | Lost 3 parts (1n2w) 919 | -9/Materials | Build established: Scavenger-Mutant 1110 | -9/Materials | Repaired Aluminum Leg 1186 | -9/Materials | Discovered new exit (range 16) 1262 | -9/Materials | Entered another Materials area 1262 | -8/Materials | Evolved 2 slots: Utility x2 1363 | -8/Materials | Lost 3 parts (1p1u1w) 1817 | -8/Materials | Build established: Mutant 2072 | -8/Materials | Garrison activated, responded to threat 2223 | -8/Materials | Garrison activated, responded to threat 2246 | -8/Materials | Lost 4 parts (1p2n1u) 2355 | -8/Materials | Discovered new exit (range 5) 2365 | -8/Materials | Entered Factory 2365 | -7/Factory | Evolved 2 slots: Utility x1, Weapon x1 2526 | -7/Factory | Build established: Scavenger-Mutant 2597 | -7/Factory | Fabricated Scythe (x2) 2864 | -7/Factory | Local fabrication network quarantined 3982 | -7/Factory | Build established: Scavenger-Tank 4070 | -7/Factory | Repaired Carbon-fiber Leg 4099 | -7/Factory | Garrison activated, responded to threat 4108 | -7/Factory | Repaired Carbon-fiber Leg 4346 | -7/Factory | Discovered new exit (range 6) 4354 | -7/Factory | Entered Lower Caves 4508 | -7/Lower Caves | Encountered a Warlord checkpoint 4836 | -7/Lower Caves | Learned Extension trap positions 4836 | -7/Lower Caves | Learned Extension security intel 4836 | -7/Lower Caves | Learned Extension garrison access intel 5450 | -7/Lower Caves | Discovered new exit (range 10) 5462 | -7/Lower Caves | Entered another Lower Caves area 5525 | -7/Lower Caves | Discovered new exit (range 10) 5548 | -7/Lower Caves | Entered Factory 5548 | -6/Factory | Evolved 2 slots: Power x1, Propulsion x1 6047 | -6/Factory | Build established: Scavenger-Gunner 6148 | -6/Factory | Lost 8 parts (3p1n2u2w) 6303 | -6/Factory | Repaired Plasma Cannon 6504 | -6/Factory | Lost 3 parts (1p1n1w) 6676 | -6/Factory | Fabricated Adv. Sensor Array (x1) 6933 | -6/Factory | Spotted B-75 Beast 7075 | -6/Factory | Destroyed B-75 Beast 7143 | -6/Factory | Core integrity fell below 50% 7371 | -6/Factory | Found Prototype Processor 7372 | -6/Factory | Identified Exp. Signal Interpreter 7376 | -6/Factory | Lost 3 parts (1p2n) 7376 | -6/Factory | Found Exp. Signal Interpreter 7548 | -6/Factory | Build established: Gunner 7665 | -6/Factory | Discovered new exit (range 16) 7686 | -6/Factory | Entered Extension 7687 | -6/Extension | Loaded intel: 15 trap records 7736 | -6/Extension | Disrupted transfer network 7811 | -6/Extension | Spotted B-75 Beast 7854 | -6/Extension | Spotted B-75 Beast 7883 | -6/Extension | Core integrity fell below 20% 7907 | -6/Extension | Destroyed by B-75 Beast with Heavy Machine Gun Last Messages --------------- 07865_ HV Slug penetrates B-75 Beast. 07865_ B-75 Beast suffers critical hit. 07865_ HV Slug penetrates B-75 Beast. 07865_ B-75 Beast suffers critical hit. 07865_ Destroyed Rnf. Deuterium Engine. 07865_ HV Slug penetrates B-75 Beast. 07865_ B-75 Beast suffers critical hit. 07868_ Hyp. Gauss Rifle destroyed. 07869_ HV Slug penetrates B-75 Beast. 07869_ B-75 Beast suffers critical hit. 07869_ HV Slug penetrates B-75 Beast. 07870_ Hyp. Gauss Rifle destroyed. 07870_ Knocked back. 07870_ Imp. Gravmag System destroyed. 07872_ System corrupted: Hyp. Gauss Rifle targeting data glitched. 07872_ HV Slug penetrates B-75 Beast. 07876_ Knocked back. 07885_ Imp. Gravmag System destroyed. 07890_ Hyp. Gauss Rifle destroyed. 07892_ Imp. Carbon-fiber Leg destroyed. Map ----- +----------------------------------------------------+ | ?????????????????????????????????????????????????? | | ?????????????????????????????????????????????????? | | ?????????????????^^??????????????????????????????? | | ?????????????????????????????????????????????????? | | ?????????????????????????????????????????????????? | | ?????????????????????????????????????????????????? | | ?????????????????????????????????????????????????? | | ?????????????????????????????????????????????????? | | ?????????????????????????????????????????????????? | | ?????????????????????????????????????????????????? | | ?????????????????????????????????????????????????? | | ?????????????????????????????????????????????????? | | ?????????????????????????????????????????????????? | | ?????????????????????????????????????????????????? | | ?????????????????????????????????????????????????? | | ?????????????????????????????????????????????????? | | ?????????????????????????????????????????????????? | | ?????????????????????????????????????????????????? | | ?????????????????????????????????????????????????? | | ?????????????????????????????????????????????????? | | ?????????????????????????????????????????????????? | | ????????????????????????????#####????????????????? | | ############################;##;################## | | |%! | | ! | | @ | | t =% | | R R k* tt !%* | | ################################################## | | ?????????????????????????????????????????????????? | | ?????????????????????????????????????????????????? | | ?????????????????????????????????????????????????? | | ?????????????????????????????????????????????????? | | ?????????????????????????????????????????????????? | | ?????????????????????????????????????????????????? | | ?????????????????????????????????????????????????? | | | | | | | | | | | | | | | | | | | | | | | | | | | | | +----------------------------------------------------+ Best States ------------- Heat Dissipation 75 Energy Generation 31 Energy Capacity 340 Matter Stores 550 Matter Capacity 550 Sight Range 18 Robot Scan Range 22 Terrain Scan Density 10 Jamming Range 8 Cloak Strength 2 Additional Mass Support 9 Armor Coverage 600 Weapon Cycling 15 Phase Shifting 5 Evasion (%) 45 Targeting Accuracy 12 Target Analysis 5 Recoil Reduction 4 Particle Charging 20 Defensive Hacking 10 Item Schematics ----------------- Arc Projector | -8/Materials | Scanalyzed Lrg. Storage Unit | -8/Materials | Scanalyzed Transmission Jammer | -8/Materials | Scanalyzed Adv. Sensor Array | -8/Materials | Scanalyzed EM Pulse Cannon | -8/Materials | Scanalyzed Lgt. Deuterium Engine | -8/Materials | Scanalyzed Lgt. Treads | -8/Materials | Scanalyzed Com. Matter Pod | -8/Materials | Scanalyzed Scythe | -8/Materials | Scanalyzed Imp. Cooling System | -6/Factory | Scanalyzed EM Shield | -6/Factory | Scanalyzed Hvy. Laser | -6/Factory | Scanalyzed Imp. Heavy Armor Plating | -6/Factory | Scanalyzed Recoil Stabilizer | -6/Factory | Scanalyzed Robot Schematics ------------------ None Fabricated ------------ Scythe | x2 | -7/Factory Adv. Sensor Array | x1 | -6/Factory Alien Tech Used ----------------- None Achievements -------------- Just What I Needed More Dakka Please Preemptive Strike Challenges ------------ None Game ------ Seed IntegrationHeatCompactor Manual? 0 Play Time 02:05:21 Cumulative 11.5 hours Start 2021.06.05 @ 07:43:16 End 2021.06.05 @ 11:40:57 Sessions 5 Manual Loads 0 Difficulty Rogue Special Mode None Game No. 11 Rogue 11 Adventurer 0 Explorer 0 Win Type - Total 0 Types 0/0/0/0/0/0/0/0/0 Lore% 2 Gallery% 20 Achievement% 14 Wizard Run 0 Options --------- ASCII 0 Keyboard 0 Movement Mouse Keybinds 1 Fullscreen 2 Font 24/Smallcaps Map View 76x50 Tactical HUD 1 Map Filters NONE Filters NONE Steam 1 RUN: 25c3af40-f689-4024-8a9c-2c339f213bcb